fUST/lending_fUST_20260213
["ID","MTS","AMOUNT","RATE_DAILY","PERIOD"]
[405231964,1770915046398,-500.0,0.00031776,2]
[405231967,1770915046409,-823.0,0.00031776,2]
[405231969,1770915046419,-515.92331516,0.0003205,2]
[405231970,1770915046430,-258.0,0.00032524,2]
[405231972,1770915046440,-178.0,0.00033226,30]
[405231974,1770915046451,-250.0,0.0003329,2]
[405231976,1770915046463,-2213.60891882,0.00033787,2]
[405231978,1770915046476,-742.60909304,0.00034039,2]
[405231980,1770915046485,-500.0,0.00034071,7]
[405231982,1770915046495,-1181.0,0.00034331,30]
[405231984,1770915046505,-861.0,0.00034331,30]
[405231987,1770915046519,-794.0,0.00034331,30]
[405231989,1770915046531,-1152.0,0.00034424,2]
[405231991,1770915046544,-285.0,0.00034524,120]
[405231993,1770915046557,-168.0,0.00034703,2]
[405231995,1770915046571,-374.474093,0.000349,2]
[405231998,1770915046583,-812.34,0.0003499,10]
[405232000,1770915046596,-1549.08,0.0003499,10]
[405232002,1770915046609,-1290.9,0.0003499,10]
[405232004,1770915046621,-2852.99,0.00034999,120]
[405232006,1770915046632,-10910.27966979,0.00035,3]
[405232047,1770915047044,-1321.42574187,0.00035,3]
[405234942,1770915429252,339.37755271,0.00013273,2]
[405234943,1770915553549,-4967.46769374,0.0002474,2]
[405234944,1770915553571,-150.0,0.00024991,2]
[405234945,1770915553593,-439.99999997,0.00024992,2]
[405234946,1770915553618,-300.0,0.00026989,2]
[405234947,1770915553640,-500.0,0.0002699,2]
[405234948,1770915553663,-189.82221299,0.0002699,2]
[405234949,1770915553688,-500.0,0.0002699,2]
[405234950,1770915553709,-500.0,0.0002699,2]
[405234951,1770915553729,-560.55213672,0.0002699,2]
[405234952,1770915553749,-500.0,0.0002699,2]
[405234953,1770915553770,-500.0,0.0002699,2]
[405234954,1770915553790,-500.0,0.0002699,2]
[405234955,1770915553812,-500.0,0.0002699,2]
[405234956,1770915553832,-500.0,0.0002699,2]
[405234957,1770915553853,-500.0,0.0002699,2]
[405234958,1770915553874,-500.0,0.0002699,2]
[405234959,1770915553895,-344.45633109,0.0002699,2]
[405234960,1770915553916,-500.0,0.0002699,2]
[405234961,1770915553939,-500.0,0.0002699,2]
[405234962,1770915553960,-500.0,0.0002699,2]
[405234963,1770915553981,-449.235902,0.0002699,2]
[405234964,1770915554002,-500.0,0.0002699,2]
[405234965,1770915554025,-374.52597854,0.0002699,2]
[405234966,1770915554045,-500.0,0.0002699,2]
[405234967,1770915554067,-500.0,0.0002699,2]
[405234968,1770915554089,-500.0,0.0002699,2]
[405234969,1770915554110,-500.0,0.0002699,2]
[405234970,1770915554131,-500.0,0.0002699,2]
[405234971,1770915554151,-500.0,0.0002699,2]
[405234972,1770915554172,-500.0,0.0002699,2]
[405234973,1770915554195,-500.0,0.0002699,2]
[405234974,1770915554217,-500.0,0.0002699,2]
[405234975,1770915554239,-500.0,0.0002699,2]
[405234976,1770915554261,-500.0,0.0002699,2]
[405234977,1770915554282,-500.0,0.0002699,2]
[405234978,1770915554303,-500.0,0.0002699,2]
[405234979,1770915554324,-500.0,0.0002699,2]
[405234980,1770915554345,-500.0,0.0002699,2]
[405234981,1770915554367,-500.0,0.0002699,2]
[405234982,1770915554390,-500.0,0.0002699,2]
[405234983,1770915554412,-500.0,0.0002699,2]
[405234984,1770915554436,-500.0,0.0002699,2]
[405234985,1770915554459,-500.0,0.0002699,2]
[405234986,1770915554482,-500.0,0.0002699,2]
[405234987,1770915554505,-500.0,0.0002699,2]
[405234988,1770915554527,-500.0,0.0002699,2]
[405234989,1770915554549,-500.0,0.0002699,2]
[405234990,1770915554571,-500.0,0.0002699,2]
[405234991,1770915554592,-500.0,0.0002699,2]
[405234992,1770915554616,-219.62111387,0.0002699,2]
[405234993,1770915554639,-500.0,0.0002699,2]
[405234994,1770915554661,-500.0,0.0002699,2]
[405234995,1770915554683,-500.0,0.0002699,2]
[405234996,1770915554705,-500.0,0.0002699,2]
[405234997,1770915554726,-300.0,0.0002699,2]
[405234998,1770915554748,-177.0,0.00026991,2]
[405234999,1770915554768,-200.77972912,0.00028295,2]
[405235000,1770915554913,-204.0,0.00028991,2]
[405235001,1770915554936,-420.0,0.00029178,2]
[405235002,1770915611606,500.0,0.00013273,2]
[405235003,1770915611659,1500.0,0.00014368,2]
[405235004,1770915611711,1000.0,0.00013821,2]
[405235005,1770915611767,2000.0,0.00014916,2]
[405235006,1770915624060,300.0,0.00013673,2]
[405235007,1770915624095,600.0,0.00014221,2]
[405235008,1770915624151,900.0,0.00014768,2]
[405235009,1770915624208,1200.0,0.00015316,2]
[405235010,1770915624263,600.0,0.00015864,2]
[405235011,1770915628014,102.53890196,0.00013699,2]
[405235012,1770915628040,397.46109804,0.00013699,2]
[405235013,1770915628071,1000.0,0.00014247,2]
[405235014,1770915628121,2000.0,0.00015342,2]
[405235015,1770915628315,1500.0,0.00014795,2]
[405235016,1770915628352,1000.0,0.0001589,2]
[405235017,1770915630285,500.0,0.00013273,2]
[405235018,1770915630314,1000.0,0.00013821,2]
[405235019,1770915630343,1500.0,0.00014368,2]
[405235020,1770915630396,994.63419989,0.00014916,2]
[405235021,1770915633217,500.0,0.00013273,2]
[405235022,1770915633264,1000.0,0.00013821,2]
[405235023,1770915633314,1500.0,0.00014368,2]
[405235024,1770915633343,1186.92518623,0.00014916,2]
[405235025,1770915727536,541.5064157,0.00013821,2]
[405235026,1770915727588,500.0,0.00013273,2]
[405235027,1770915730246,316.37699428,0.00013699,2]
[405235028,1770915730271,183.62300572,0.00013699,2]
[405235029,1770915730301,1419.78605782,0.0001589,2]
[405235030,1770915730330,1000.0,0.00014247,2]
[405235031,1770915730364,1500.0,0.00014795,2]
[405235032,1770915730422,2000.0,0.00015342,2]
[405235033,1770915730799,300.0,0.00013673,2]
[405235034,1770915731003,330.70449328,0.00014221,2]
[405235041,1770915821189,200.0,0.00030137,120]
[405235043,1770915913766,640.07941433,0.00013699,2]
[405235044,1770915913891,401.70488794,0.00013699,2]
[405235045,1770915925519,500.0,0.00013273,2]
[405235046,1770915925576,541.5064157,0.00013821,2]
[405235047,1770915928318,316.37699428,0.00013699,2]
[405235051,1770916025090,345.39040608,0.00013699,2]
[405235060,1770916230175,500.0,0.00013699,2]
[405235061,1770916231071,500.0,0.00013273,2]
[405235062,1770916231125,798.96782818,0.00013821,2]
[405235083,1770916231915,-3285.6,0.00024828,2]
[405235085,1770916231926,-1353.43661,0.00024828,2]
[405235137,1770916237982,-360.96339,0.00024828,2]
[405235139,1770916237992,-150.0,0.00025079,2]
[405235141,1770916238001,-1200.0,0.00026847,2]
[405235143,1770916238010,-193.0,0.00027,7]
[405235145,1770916238019,-177.0,0.00027079,2]
[405235147,1770916238029,-300.0,0.00027395,2]
[405235149,1770916238039,-500.0,0.00027395,2]
[405235151,1770916238048,-640.69873562,0.00027395,2]
[405235153,1770916238058,-500.0,0.00027395,2]
[405235155,1770916238067,-643.95411498,0.00027395,2]
[405235157,1770916238077,-237.48141786,0.00027395,2]
[405235159,1770916238086,-433.30008254,0.00027395,2]
[405235370,1770916240140,-66.69991746,0.00027395,2]
[405235372,1770916240151,-459.06262933,0.00027395,2]
[405235374,1770916240163,-40.93737067,0.00027395,2]
[405235376,1770916240173,-551.96211139,0.00027395,2]
[405235379,1770916240183,-813.3,0.00027397,2]
[405235381,1770916240193,-193.0,0.00028767,14]
[405235383,1770916240202,-204.0,0.00029079,2]
[405235384,1770916240215,-400.0,0.00029158,2]
[405235386,1770916240223,-423.0,0.00029361,2]
[405235388,1770916240233,-713.0,0.00029361,2]
[405235390,1770916240243,-420.0,0.00029605,2]
[405235392,1770916240252,-704.0,0.0003032,3]
[405235395,1770916240261,-231.0,0.00031079,2]
[405235396,1770916240272,-742.60909304,0.00031651,2]
[405235399,1770916240282,-587.0,0.00031993,2]
[405235400,1770916240291,-150.0,0.00032,120]
[405235403,1770916240301,-6.17128401,0.00032361,2]
[405235405,1770916240313,-416.82871599,0.00032361,2]
[405235407,1770916240322,-109.24835062,0.00033079,120]
[405235452,1770916240916,-148.75164938,0.00033079,120]
[405235454,1770916240926,-712.0,0.00033126,11]
[405235456,1770916240935,-178.60266113,0.000332,117]
[405235458,1770916240944,-178.60266112,0.000332,117]
[405235460,1770916240953,-178.60266112,0.00033705,119]
[405235462,1770916240965,-482.25,0.000339,2]
[405235464,1770916240975,-250.0,0.00034,120]
[405235466,1770916240984,-150.0,0.00034,120]
[405235468,1770916240994,-784.0,0.00034,2]
[405235470,1770916241003,-999.0,0.0003402,30]
[405235472,1770916241012,-825.0,0.0003402,30]
[405235474,1770916241022,-162.0,0.0003423,11]
[405235476,1770916241031,-823.0,0.00034574,2]
[405235478,1770916241040,-3997.03359093,0.00034754,2]
[405235480,1770916241049,-196.746,0.00034874,40]
[405235482,1770916241058,-167.78,0.0003499,3]
[405235484,1770916241067,-503.36,0.0003499,3]
[405235486,1770916241076,-1646.06,0.0003499,10]
[405235488,1770916241086,-1371.71,0.0003499,10]
[405235490,1770916241094,-1143.09,0.0003499,10]
[405235492,1770916241103,-2734.11,0.00034999,120]
[405235494,1770916241113,-262216.29458834,0.00035,3]
[405235496,1770916241122,-193.47,0.00035,7]
[405235498,1770916241131,-308.76,0.00035,30]
[405235500,1770916241141,-2442.56,0.00035,14]
[405235502,1770916241150,-400.0,0.00035,120]
[405235504,1770916241159,-285.0,0.00035079,120]
[405235506,1770916241168,-712.0,0.00035296,11]
[405235508,1770916241177,-423.0,0.00035361,2]
[405235510,1770916241187,-532.04996406,0.00035616,5]
[405235512,1770916241196,-500.0,0.00035616,5]
[405235514,1770916241206,-525.80180041,0.00035616,5]
[405235516,1770916241215,-521.23610604,0.00035616,5]
[405235518,1770916241224,-536.33970628,0.00035616,5]
[405235520,1770916241234,-510.87044609,0.00035616,5]
[405235522,1770916241243,-522.85294611,0.00035616,5]
[405235524,1770916241251,-500.0,0.00035616,5]
[405235526,1770916241260,-500.0,0.00035616,5]
[405235528,1770916241270,-525.89569232,0.00035616,5]
[405235530,1770916241279,-510.80148749,0.00035616,5]
[405235532,1770916241288,-522.91571457,0.00035616,5]
[405235534,1770916241297,-555.75877647,0.00035616,5]
[405235536,1770916241306,-500.0,0.00035616,5]
[405235537,1770916241315,-511.03279974,0.00035616,5]
[405235540,1770916241325,-476.18267987,0.00035616,5]
[405235542,1770916241334,-527.32608909,0.00035616,5]
[405235544,1770916241343,-607.55350409,0.00035616,5]
[405235545,1770916241353,-579.31167126,0.00035616,5]
[405235547,1770916241362,-531.10595333,0.00035616,5]
[405235549,1770916241371,-524.57794595,0.00035616,5]
[405235551,1770916241381,-500.0,0.00035616,5]
[405235553,1770916241390,-645.96730427,0.00035616,5]
[405235555,1770916241399,-512.88254083,0.00035616,5]
[405235557,1770916241409,-525.3204642,0.00035616,5]
[405235559,1770916241418,-539.32493277,0.00035616,5]
[405235561,1770916241427,-576.17241958,0.00035616,5]
[405235563,1770916241436,-500.0,0.00035616,5]
[405235565,1770916241445,-500.0,0.00035616,5]
[405235567,1770916241453,-504.83090486,0.00035616,5]
[405235569,1770916241464,-500.0,0.00035616,5]
[405235571,1770916241474,-506.54015826,0.00035616,5]
[405235573,1770916241483,-500.0,0.00035616,5]
[405235575,1770916241491,-500.0,0.00035616,5]
[405235577,1770916241501,-500.0,0.00035616,5]
[405235579,1770916241511,-500.0,0.00035616,5]
[405235581,1770916241520,-517.58585994,0.00035616,5]
[405235583,1770916241529,-556.58899895,0.00035616,5]
[405235585,1770916241538,-500.0,0.00035616,5]
[405235587,1770916241547,-532.94160975,0.00035616,5]
[405235589,1770916241557,-510.3035817,0.00035616,5]
[405235591,1770916241566,-500.0,0.00035616,5]
[405235593,1770916241577,-473.39306584,0.00035616,5]
[405235595,1770916241586,-253.79751769,0.00035616,5]
[405235597,1770916241596,-523.30471691,0.00035616,5]
[405235599,1770916241605,-541.358186,0.00035616,5]
[405235601,1770916241614,-514.99248566,0.00035616,5]
[405235603,1770916241623,-500.0,0.00035616,5]
[405235605,1770916241633,-630.96898309,0.00035616,5]
[405235607,1770916241642,-500.0,0.00035616,5]
[405235609,1770916241651,-521.10611545,0.00035616,5]
[405235611,1770916241660,-500.0,0.00035616,5]
[405235613,1770916241669,-613.88,0.00035616,5]
[405235615,1770916241680,-500.0,0.00035616,2]
[405235617,1770916241689,-507.87829877,0.00035616,5]
[405235619,1770916241699,-328.89085697,0.00035616,5]
[405235621,1770916241709,-500.0,0.00035616,5]
[405235623,1770916241718,-500.0,0.00035616,5]
[405235625,1770916241728,-592.13,0.00035616,5]
[405235626,1770916241737,-500.0,0.00035616,5]
[405235628,1770916241746,-500.0,0.00035616,5]
[405235630,1770916241755,-490.67558142,0.00035616,5]
[405235632,1770916241764,-592.54744824,0.00035616,5]
[405235634,1770916241774,-500.0,0.00035616,5]
[405235636,1770916241783,-331.51220291,0.00035616,5]
[405235638,1770916241792,-500.0,0.00035616,5]
[405235640,1770916241802,-500.0,0.00035616,5]
[405235642,1770916241811,-518.44280681,0.00035616,5]
[405235644,1770916241824,-500.0,0.00035616,5]
[405235646,1770916241833,-313.23999321,0.00035616,5]
[405235648,1770916241842,-500.0,0.00035616,5]
[405235650,1770916241851,-4273.01,0.00035616,5]
[405235652,1770916241862,-527.79172991,0.00035616,5]
[405235654,1770916241871,-551.69,0.00035616,5]
[405235656,1770916241881,-553.28,0.00035616,5]
[405235658,1770916241892,-575.91918155,0.00035616,5]
[405235660,1770916241903,-502.80543749,0.00035616,5]
[405235662,1770916241912,-850.55,0.00035616,5]
[405235664,1770916241920,-517.87679709,0.00035616,5]
[405235666,1770916241929,-512.65122279,0.00035616,5]
[405235668,1770916241938,-500.0,0.00035616,5]
[405235670,1770916241947,-228.09204444,0.00035616,5]
[405235672,1770916241959,-528.09512678,0.00035616,5]
[405235674,1770916241968,-500.0,0.00035616,5]
[405235676,1770916241978,-509.52204017,0.00035616,5]
[405235678,1770916241987,-524.77899584,0.00035616,5]
[405235680,1770916242000,-509.12878355,0.00035616,5]
[405235682,1770916242009,-510.49597587,0.00035616,5]
[405235684,1770916242018,-500.0,0.00035616,2]
[405235686,1770916242027,-518.09087924,0.00035616,5]
[405235688,1770916242036,-510.16361309,0.00035616,5]
[405235690,1770916242045,-500.0,0.0003589,5]
[405235692,1770916242055,-500.0,0.0003589,5]
[405235694,1770916242064,-500.0,0.0003589,5]
[405235696,1770916242073,-227.58,0.0003589,5]
[405235698,1770916242082,-440.60487512,0.0003589,5]
[405235700,1770916242092,-436.74988585,0.0003589,5]
[405235702,1770916242101,-613.88,0.0003589,5]
[405235704,1770916242110,-500.0,0.0003589,2]
[405235706,1770916242119,-500.0,0.0003589,5]
[405235708,1770916242128,-477.91172192,0.0003589,5]
[405235710,1770916242137,-592.13,0.0003589,5]
[405235712,1770916242146,-4273.01,0.0003589,5]
[405235714,1770916242155,-551.69,0.0003589,5]
[405235716,1770916242164,-850.55,0.0003589,5]
[405235718,1770916242173,-500.0,0.0003589,5]
[405235720,1770916242182,-500.0,0.0003589,2]
[405235722,1770916242191,-201.93286099,0.00035968,2]
[405235724,1770916242200,-209.40437684,0.00035968,2]
[405235726,1770916242209,-217.15233878,0.00035968,2]
[405235728,1770916242218,-225.18697532,0.00035968,2]
[405235730,1770916242227,-233.51889341,0.00035968,2]
[405235732,1770916242235,-316.81660545,0.00035968,2]
[405235734,1770916242244,-400.0,0.00036,120]
[405235736,1770916242253,-189.2470519,0.00036127,2]
[405235738,1770916242262,-500.0,0.00036164,5]
[405235740,1770916242271,-500.0,0.00036164,5]
[405235742,1770916242280,-247.28292907,0.00036164,5]
[405235744,1770916242289,-613.88,0.00036164,5]
[405235746,1770916242297,-500.0,0.00036164,2]
[405235748,1770916242306,-500.0,0.00036164,5]
[405235750,1770916242315,-592.13,0.00036164,5]
[405235752,1770916242325,-4273.01,0.00036164,5]
[405235754,1770916242334,-551.69,0.00036164,5]
[405235756,1770916242343,-850.55,0.00036164,5]
[405235758,1770916242352,-500.0,0.00036164,5]
[405235760,1770916242361,-500.0,0.00036164,2]
[405235762,1770916242370,-168.0,0.00036284,2]
[405235764,1770916242379,-335.56,0.0003636,3]
[405235766,1770916242389,-500.0,0.00036438,5]
[405235767,1770916242398,-500.0,0.00036438,5]
[405235769,1770916242407,-613.88,0.00036438,5]
[405235772,1770916242416,-500.0,0.00036438,2]
[405235774,1770916242425,-500.0,0.00036438,5]
[405235775,1770916242434,-592.13,0.00036438,5]
[405235778,1770916242444,-4273.01,0.00036438,5]
[405235779,1770916242453,-551.69,0.00036438,5]
[405235781,1770916242465,-850.55,0.00036438,5]
[405235784,1770916242475,-500.0,0.00036438,5]
[405235785,1770916242484,-500.0,0.00036438,2]
[405235787,1770916242493,-2000.0,0.00036603,2]
[405235789,1770916242503,-500.0,0.00036712,5]
[405235791,1770916242514,-500.0,0.00036712,5]
[405235793,1770916242523,-613.88,0.00036712,5]
[405235795,1770916242532,-500.0,0.00036712,2]
[405235797,1770916242541,-500.0,0.00036712,5]
[405235800,1770916242551,-592.13,0.00036712,5]
[405235803,1770916242561,-4273.01,0.00036712,5]
[405235805,1770916242570,-551.69,0.00036712,5]
[405235807,1770916242579,-850.55,0.00036712,5]
[405235809,1770916242589,-500.0,0.00036712,5]
[405235811,1770916242598,-500.0,0.00036712,2]
[405235813,1770916242607,-500.0,0.00036986,5]
[405235815,1770916242617,-500.0,0.00036986,5]
[405235817,1770916242626,-613.88,0.00036986,5]
[405235819,1770916242635,-500.0,0.00036986,2]
[405235821,1770916242644,-500.0,0.00036986,5]
[405235823,1770916242654,-592.13,0.00036986,5]
[405235825,1770916242664,-4273.01,0.00036986,5]
[405235827,1770916242673,-551.69,0.00036986,5]
[405235829,1770916242682,-850.55,0.00036986,5]
[405235831,1770916242692,-500.0,0.00036986,5]
[405235833,1770916242701,-500.0,0.00036986,2]
[405235835,1770916242713,-8230.5489049,0.0003699,2]
[405235837,1770916242722,-400.0,0.00037,120]
[405235839,1770916242731,-312.0,0.00037079,120]
[405235841,1770916242740,-500.0,0.0003726,5]
[405235843,1770916242749,-613.88,0.0003726,5]
[405235845,1770916242758,-500.0,0.0003726,2]
[405235847,1770916242768,-500.0,0.0003726,5]
[405235849,1770916242778,-592.13,0.0003726,5]
[405235851,1770916242787,-4273.01,0.0003726,5]
[405235853,1770916242796,-551.69,0.0003726,5]
[405235855,1770916242805,-850.55,0.0003726,5]
[405235857,1770916242815,-500.0,0.0003726,5]
[405235859,1770916242827,-500.0,0.0003726,2]
[405235861,1770916242836,-401.0,0.00037271,11]
[405235863,1770916242845,-1152.0,0.00037363,2]
[405235865,1770916242855,-500.0,0.00037534,5]
[405235867,1770916242865,-613.88,0.00037534,5]
[405235869,1770916242875,-500.0,0.00037534,2]
[405235871,1770916242884,-500.0,0.00037534,5]
[405235873,1770916242895,-592.13,0.00037534,5]
[405235875,1770916242903,-4273.01,0.00037534,5]
[405235877,1770916242912,-551.69,0.00037534,5]
[405235879,1770916242921,-850.55,0.00037534,5]
[405235881,1770916242931,-464.8293601,0.00037534,5]
[405235883,1770916242940,-500.0,0.00037534,2]
[405235885,1770916242949,-500.0,0.00037808,5]
[405235887,1770916242960,-613.88,0.00037808,5]
[405235889,1770916242969,-500.0,0.00037808,2]
[405235891,1770916242978,-500.0,0.00037808,5]
[405235893,1770916242988,-592.13,0.00037808,5]
[405235894,1770916242999,-4273.01,0.00037808,5]
[405235896,1770916243009,-551.69,0.00037808,5]
[405235898,1770916243019,-850.55,0.00037808,5]
[405235900,1770916243027,-500.0,0.00037808,2]
[405235902,1770916243036,-401.0,0.00037911,11]
[405235904,1770916243045,-194.72792766,0.00037962,30]
[405235906,1770916243055,-181.08010149,0.0003797,30]
[405235908,1770916243064,-187.78006525,0.0003797,31]
[405235910,1770916243073,-174.61919141,0.00037999,31]
[405235911,1770916243082,-400.0,0.00038,120]
[405235912,1770916243091,-178.60266112,0.00038067,120]
[405235913,1770916243099,-464.66159101,0.00038082,5]
[405235914,1770916243108,-613.88,0.00038082,5]
[405235915,1770916243118,-500.0,0.00038082,2]
[405235916,1770916243233,-500.0,0.00038082,5]
[405235917,1770916243243,-592.13,0.00038082,5]
[405235918,1770916243252,-4273.01,0.00038082,5]
[405235919,1770916243261,-551.69,0.00038082,5]
[405235920,1770916243270,-850.55,0.00038082,5]
[405235923,1770916243278,-500.0,0.00038082,2]
[405235925,1770916243287,-168.3888056,0.00038099,30]
[405235927,1770916243297,-162.380719,0.00038298,30]
[405235928,1770916243306,-193.47,0.000383,7]
[405235929,1770916243315,-712.0,0.00038306,11]
[405235931,1770916243333,-5263.24354682,0.00038356,15]
[405235933,1770916243353,-613.88,0.00038356,5]
[405235935,1770916243366,-500.0,0.00038356,2]
[405235938,1770916243376,-500.0,0.00038356,5]
[405235941,1770916243389,-592.13,0.00038356,5]
[405235945,1770916243399,-4273.01,0.00038356,5]
[405235948,1770916243416,-551.69,0.00038356,5]
[405235951,1770916243437,-850.55,0.00038356,5]
[405235954,1770916243456,-500.0,0.00038356,2]
[405235957,1770916243469,-422.0,0.00038361,2]
[405235959,1770916243480,-308.76,0.000384,30]
[405235961,1770916243492,-2442.56,0.000384,14]
[405235963,1770916243503,-613.88,0.0003863,5]
[405235965,1770916243516,-500.0,0.0003863,2]
[405235967,1770916243526,-500.0,0.0003863,5]
[405235969,1770916243538,-592.13,0.0003863,5]
[405235971,1770916243548,-4273.01,0.0003863,5]
[405235973,1770916243560,-551.69,0.0003863,5]
[405235975,1770916243569,-850.55,0.0003863,5]
[405235977,1770916243580,-500.0,0.0003863,2]
[405235979,1770916243591,-178.27261966,0.00038703,2]
[405235981,1770916243603,-613.88,0.00038904,5]
[405235983,1770916243612,-500.0,0.00038904,2]
[405235985,1770916243621,-500.0,0.00038904,5]
[405235987,1770916243631,-592.13,0.00038904,5]
[405235989,1770916243642,-4273.01,0.00038904,5]
[405235991,1770916243652,-551.69,0.00038904,5]
[405235993,1770916243662,-850.55,0.00038904,5]
[405235994,1770916243671,-500.0,0.00038904,2]
[405235996,1770916243682,-487.0,0.00038904,2]
[405235998,1770916243693,-487.0,0.00038904,2]
[405236000,1770916243706,-487.0,0.00038904,2]
[405236003,1770916243718,-487.0,0.00038904,2]
[405236005,1770916243730,-487.0,0.00038904,2]
[405236006,1770916243740,-487.0,0.00038904,2]
[405236008,1770916243751,-445.20552101,0.00038904,2]
[405236074,1770916244453,-5000.0,0.00024953,2]
[405236076,1770916244474,-516.20671661,0.00035616,5]
[405236077,1770916244484,-625.0,0.00038904,30]
[405236079,1770916244495,-41.79447899,0.00038904,2]
[405236082,1770916244505,-487.0,0.00038904,2]
[405236084,1770916244515,-596.16,0.00038904,2]
[405236085,1770916244528,-400.0,0.00039,120]
[405236088,1770916244540,-339.0,0.00039079,120]
[405236089,1770916244550,-613.88,0.00039178,5]
[405236091,1770916244561,-500.0,0.00039178,2]
[405236094,1770916244571,-475.34508056,0.00039178,5]
[405236096,1770916244583,-592.13,0.00039178,5]
[405236098,1770916244594,-4273.01,0.00039178,5]
[405236100,1770916244606,-551.69,0.00039178,5]
[405236101,1770916244618,-850.55,0.00039178,5]
[405236104,1770916244628,-500.0,0.00039178,2]
[405236105,1770916244638,-613.88,0.00039452,5]
[405236107,1770916244650,-500.0,0.00039452,2]
[405236109,1770916244661,-592.13,0.00039452,5]
[405236111,1770916244675,-4273.01,0.00039452,5]
[405236113,1770916244687,-551.69,0.00039452,5]
[405236115,1770916244698,-850.55,0.00039452,5]
[405236117,1770916244712,-500.0,0.00039452,2]
[405236119,1770916244723,-5000.0,0.00039462,30]
[405236121,1770916244734,-5000.0,0.00039462,30]
[405236123,1770916244745,-2000.0,0.00039541,21]
[405236125,1770916244758,-156.587,0.00039702,30]
[405236127,1770916244768,-613.88,0.00039726,5]
[405236129,1770916244778,-500.0,0.00039726,2]
[405236131,1770916244788,-592.13,0.00039726,5]
[405236133,1770916244800,-4273.01,0.00039726,5]
[405236135,1770916244812,-551.69,0.00039726,5]
[405236137,1770916244827,-850.55,0.00039726,5]
[405236139,1770916244836,-500.0,0.00039726,2]
[405236142,1770916244849,-953.88062603,0.000398,2]
[405236144,1770916244862,-163.99,0.00039829,120]
[405236146,1770916244873,-151.0,0.00039899,30]
[405236148,1770916244885,-9039.61763964,0.000399,2]
[405236149,1770916244899,-163.99,0.00039929,120]
[405236151,1770916244910,-479.57563193,0.00039999,31]
[405236153,1770916244922,-227.99579015,0.00039999,7]
[405236155,1770916244935,-101984.49669658,0.0004,120]
[405236157,1770916244948,-137530.29911457,0.0004,120]
[405236164,1770916245023,-2465.4700819,0.0004,120]
[405236280,1770916246380,-647.78383956,0.0004,120]
[405236307,1770916246597,-304.4866,0.0004,120]
[405240560,1770916808576,500.0,0.00013273,2]
[405240561,1770916808607,1000.0,0.00013821,2]
[405240566,1770916816763,500.0,0.00013699,2]
[405240569,1770916892901,150.0,0.00030137,120]
[405240570,1770916893063,717.5425491,0.00014247,2]
[405240571,1770916893215,500.0,0.00013699,2]
[405240574,1770916926490,300.0,0.00013673,2]
[405240575,1770916932569,500.0,0.00013699,2]
[405240605,1770917108380,284.2211531,0.00013699,2]
[405240610,1770917125180,500.0,0.00013699,2]
[405240611,1770917125234,1000.0,0.00014247,2]
[405240612,1770917134885,500.0,0.00013699,2]
[405240613,1770917134950,500.0,0.00014247,2]
[405240616,1770917249639,500.0,0.00013273,2]